[Event "Masters Tournament (MTO)"]
[Site "Biel, Switzerland"]
[Date "2026.07.18"]
[Round "6.39"]
[White "Ruchat, Blaise"]
[Black "Morrison, Joseph"]
[Result "0-1"]
[TimeControl "100+30+30sec/move"]
[WhiteTitle "-"]
[BlackTitle "-"]
[WhiteFideId "1328921"]
[BlackFideId "479535"]
[WhiteElo "1912"]
[BlackElo "2048"]

1. e4 {[%clk 01:40:57]} c6 {[%clk 01:39:43]} {[%emt 00:01:17]} 2. d4 {[%clk
01:40:46]} {[%emt 00:00:39]} d5 {[%clk 01:40:11]} {[%emt 00:00:04]} 3. Nc3
{[%clk 01:41:02]} {[%emt 00:00:14]} dxe4 {[%clk 01:40:34]} {[%emt 00:00:07]} 4.
Nxe4 {[%clk 01:41:27]} {[%emt 00:00:05]} Nf6 {[%clk 01:40:57]} {[%emt
00:00:07]} 5. Nxf6+ {[%clk 01:41:51]} {[%emt 00:00:05]} exf6 {[%clk 01:41:26]}
{[%emt 00:00:02]} 6. c3 {[%clk 01:42:08]} {[%emt 00:00:12]} Bd6 {[%clk
01:41:32]} {[%emt 00:00:25]} 7. Bd3 {[%clk 01:42:06]} {[%emt 00:00:33]} O-O
{[%clk 01:41:45]} {[%emt 00:00:16]} 8. Be3 {[%clk 01:17:34]} {[%emt 00:25:00]}
Re8 {[%clk 01:40:52]} {[%emt 00:01:26]} 9. Nf3 {[%emt 00:10:21]} f5 {[%clk
01:36:43]} 10. O-O {[%clk 01:11:27]} {[%emt 00:01:24]} f4 {[%clk 01:35:11]}
{[%emt 00:02:02]} 11. Bd2 {[%clk 01:11:47]} {[%emt 00:00:10]} Qf6 {[%clk
01:34:36]} {[%emt 00:01:05]} 12. Re1 {[%clk 01:04:38]} {[%emt 00:07:38]} Be6
{[%clk 01:32:42]} {[%emt 00:02:24]} 13. Bc4 {[%clk 01:01:13]} {[%emt 00:03:57]}
Nd7 {[%clk 01:31:51]} {[%emt 00:01:20]} 14. Bxe6 {[%clk 00:53:12]} {[%emt
00:08:31]} fxe6 {[%clk 01:32:09]} {[%emt 00:00:12]} 15. Qb3 {[%clk 00:46:32]}
{[%emt 00:07:08]} b6 {[%clk 01:23:14]} {[%emt 00:09:27]} 16. Ng5 {[%clk
00:43:52]} {[%emt 00:03:10]} Nf8 {[%clk 01:17:53]} {[%emt 00:05:51]} 17. Ne4
{[%clk 00:37:25]} {[%emt 00:06:56]} Qe7 {[%clk 01:16:56]} {[%emt 00:01:26]} 18.
Nxd6 {[%clk 00:31:41]} {[%emt 00:06:16]} Qxd6 {[%clk 01:17:25]} {[%emt
00:00:01]} 19. Re4 {[%clk 00:30:27]} {[%emt 00:01:44]} g5 {[%clk 01:08:47]}
{[%emt 00:09:08]} 20. Rae1 {[%clk 00:29:58]} {[%emt 00:00:59]} Kf7 {[%clk
01:07:22]} {[%emt 00:01:54]} 21. h4 {[%clk 00:14:42]} {[%emt 00:15:46]} h6
{[%clk 01:05:04]} {[%emt 00:02:49]} 22. hxg5 {[%clk 00:15:09]} {[%emt
00:00:04]} hxg5 {[%clk 01:05:09]} {[%emt 00:00:25]} 23. Re5 {[%clk 00:14:19]}
{[%emt 00:01:19]} Qd8 {[%clk 00:53:38]} {[%emt 00:12:01]} 24. g3 {[%clk
00:13:05]} {[%emt 00:01:44]} Qf6 {[%clk 00:50:05]} {[%emt 00:04:02]} 25. Qd1
{[%clk 00:12:38]} {[%emt 00:00:58]} Ng6 {[%clk 00:45:48]} {[%emt 00:04:47]} 26.
R5e4 {[%clk 00:11:03]} {[%emt 00:02:05]} Qf5 {[%clk 00:25:41]} {[%emt
00:20:36]} 27. gxf4 {[%clk 00:07:45]} {[%emt 00:03:49]} gxf4 {[%clk 00:14:08]}
{[%emt 00:12:03]} 28. Qf3 {[%clk 00:07:44]} {[%emt 00:00:31]} Re7 {[%clk
00:06:32]} {[%emt 00:08:06]} 29. b3 {[%clk 00:07:23]} {[%emt 00:00:50]} Rh8
{[%clk 00:05:15]} {[%emt 00:01:47]} 30. Bxf4 {[%clk 00:03:39]} {[%emt
00:04:13]} Rh4 {[%clk 00:04:49]} {[%emt 00:00:57]} 0-1

[Event "Masters Tournament (MTO)"]
[Site "Biel, Switzerland"]
[Date "2026.07.18"]
[Round "6.40"]
[White "Arndt, Uwe"]
[Black "Carey, Michael"]
[Result "1/2-1/2"]
[TimeControl "100+30+30sec/move"]
[WhiteTitle "-"]
[BlackTitle "-"]
[WhiteFideId "24647713"]
[BlackFideId "30923760"]
[WhiteElo "2005"]
[BlackElo "1946"]

1. d4 {[%clk 01:40:58]} {[%emt 04:46:22]} Nf6 {[%clk 01:40:56]} {[%emt
00:00:05]} 2. c4 {[%clk 01:41:23]} {[%emt 00:00:06]} c5 {[%clk 01:41:22]}
{[%emt 00:00:04]} 3. d5 {[%clk 01:41:47]} {[%emt 00:00:05]} b5 {[%clk
01:41:49]} {[%emt 00:00:03]} 4. cxb5 {[%clk 01:42:04]} {[%emt 00:00:13]} a6
{[%clk 01:42:15]} {[%emt 00:00:04]} 5. bxa6 {[%clk 01:42:25]} {[%emt 00:00:09]}
g6 {[%clk 01:42:40]} {[%emt 00:00:04]} 6. Nc3 {[%clk 01:42:44]} {[%emt
00:00:11]} Bg7 {[%clk 01:43:05]} {[%emt 00:00:05]} 7. e4 {[%clk 01:43:03]}
{[%emt 00:00:11]} O-O {[%clk 01:43:22]} {[%emt 00:00:14]} 8. a7 {[%clk
01:42:37]} {[%emt 00:00:57]} Rxa7 {[%clk 01:43:42]} {[%emt 00:00:09]} 9. Nf3
{[%clk 01:42:55]} {[%emt 00:00:12]} e6 {[%clk 01:43:23]} {[%emt 00:00:49]} 10.
Be2 {[%clk 01:43:17]} {[%emt 00:00:08]} exd5 {[%clk 01:43:44]} {[%emt
00:00:09]} 11. exd5 {[%clk 01:43:41]} {[%emt 00:00:06]} d6 {[%clk 01:43:55]}
{[%emt 00:00:19]} 12. O-O {[%clk 01:44:05]} {[%emt 00:00:06]} Na6 {[%clk
01:44:21]} {[%emt 00:00:04]} 13. Nb5 {[%clk 01:44:15]} {[%emt 00:00:20]} Rd7
{[%clk 01:44:16]} {[%emt 00:00:34]} 14. Bc4 {[%clk 01:44:24]} {[%emt 00:00:21]}
Bb7 {[%clk 01:41:33]} {[%emt 00:03:13]} 15. Qb3 {[%clk 01:44:42]} {[%emt
00:00:12]} Qa8 {[%clk 01:37:15]} {[%emt 00:04:48]} 16. Rd1 {[%clk 01:45:06]}
{[%emt 00:00:06]} Rfd8 {[%clk 01:35:57]} {[%emt 00:01:48]} 17. h3 {[%clk
01:40:52]} {[%emt 00:04:44]} Nc7 {[%clk 01:33:59]} {[%emt 00:02:28]} 18. Nxc7
{[%clk 01:41:14]} {[%emt 00:00:09]} Rxc7 {[%clk 01:34:23]} {[%emt 00:00:06]} 19.
Bf4 {[%clk 01:41:17]} {[%emt 00:00:27]} Re7 {[%clk 01:25:54]} {[%emt 00:08:58]}
20. a4 {[%clk 01:30:13]} {[%emt 00:11:35]} Re4 {[%clk 01:14:39]} {[%emt
00:11:44]} 21. Bg5 {[%clk 01:27:36]} {[%emt 00:03:06]} h6 {[%clk 01:12:40]}
{[%emt 00:02:29]} 22. Bxf6 {[%clk 01:27:04]} {[%emt 00:01:04]} Bxf6 {[%clk
01:13:08]} {[%emt 00:00:01]} 23. Rd2 {[%clk 01:23:49]} {[%emt 00:03:46]} Ba6
{[%clk 01:04:19]} {[%emt 00:09:18]} 24. Bxa6 {[%clk 01:18:16]} {[%emt
00:06:03]} Qxa6 {[%clk 01:04:47]} {[%emt 00:00:02]} 25. Ra2 {[%clk 01:17:06]}
{[%emt 00:01:41]} Ra8 {[%clk 00:54:56]} {[%emt 00:10:21]} 26. a5 {[%clk
01:13:57]} {[%emt 00:03:39]} Rb4 {[%clk 00:54:52]} {[%emt 00:00:33]} 27. Qe3
{[%clk 01:12:37]} {[%emt 00:01:49]} Kg7 {[%clk 00:53:59]} {[%emt 00:01:24]} 28.
b3 {[%clk 01:05:26]} {[%emt 00:07:41]} Qb5 {[%clk 00:51:13]} {[%emt 00:03:16]}
29. Rd3 {[%clk 01:05:15]} {[%emt 00:00:42]} Rxa5 {[%clk 00:46:42]} {[%emt
00:05:01]} 30. Rxa5 {[%clk 01:05:15]} {[%emt 00:00:30]} Qxa5 {[%clk 00:47:10]}
{[%emt 00:00:02]} 31. Kh2 {[%clk 01:04:24]} {[%emt 00:01:19]} Qa2 {[%clk
00:43:33]} {[%emt 00:04:07]} 32. g3 {[%clk 01:01:52]} {[%emt 00:03:02]} Rb7
{[%clk 00:33:56]} {[%emt 00:10:08]} 33. Kg2 {[%clk 01:01:44]} {[%emt 00:00:37]}
Qc2 {[%clk 00:25:38]} {[%emt 00:08:49]} 34. h4 {[%clk 00:58:04]} {[%emt
00:04:10]} c4 {[%clk 00:18:56]} {[%emt 00:07:12]} 35. bxc4 {[%clk 00:58:26]}
{[%emt 00:00:09]} Qxc4 {[%clk 00:18:37]} {[%emt 00:00:47]} 1/2-1/2

[Event "Masters Tournament (MTO)"]
[Site "Biel, Switzerland"]
[Date "2026.07.18"]
[Round "6.41"]
[White "Joly, Fabrice"]
[Black "Oestmann, Lukas"]
[Result "1-0"]
[TimeControl "100+30+30sec/move"]
[WhiteTitle "-"]
[BlackTitle "-"]
[WhiteFideId "612235"]
[BlackFideId "1326457"]
[WhiteElo "1907"]
[BlackElo "1998"]

1. e4 {[%clk 01:40:58]} {[%emt 00:05:49]} c5 {[%clk 01:40:49]} {[%emt
00:00:11]} 2. c4 {[%clk 01:39:14]} {[%emt 00:02:14]} Nc6 {[%clk 01:40:52]}
{[%emt 00:00:28]} 3. Nc3 {[%clk 01:39:33]} {[%emt 00:00:09]} e6 {[%clk
01:40:46]} {[%emt 00:00:37]} 4. g3 {[%clk 01:39:42]} {[%emt 00:00:21]} Nf6
{[%clk 01:41:02]} {[%emt 00:00:14]} 5. Bg2 {[%clk 01:40:06]} {[%emt 00:00:06]}
a6 {[%clk 01:39:28]} {[%emt 00:02:04]} 6. Nge2 {[%clk 01:39:08]} {[%emt
00:01:28]} Qc7 {[%clk 01:36:35]} {[%emt 00:03:23]} 7. O-O {[%clk 01:39:29]}
{[%emt 00:00:09]} Be7 {[%clk 01:35:30]} {[%emt 00:01:35]} 8. d3 {[%emt
00:04:44]} O-O {[%clk 01:33:03]} {[%emt 00:00:01]} 9. h3 {[%clk 01:36:42]}
{[%emt 00:01:59]} Rb8 {[%clk 01:31:30]} {[%emt 00:02:03]} 10. f4 {[%clk
01:23:07]} {[%emt 00:14:05]} d6 {[%clk 01:31:16]} {[%emt 00:00:44]} 11. g4
{[%clk 01:21:56]} {[%emt 00:01:41]} b5 {[%clk 01:27:00]} {[%emt 00:04:46]} 12.
f5 {[%clk 00:58:17]} {[%emt 00:24:09]} Nd4 {[%clk 01:19:00]} {[%emt 00:08:30]}
13. b3 {[%clk 00:44:45]} {[%emt 00:14:02]} Nxe2+ {[%clk 01:15:33]} {[%emt
00:03:57]} 14. Qxe2 {[%clk 00:44:33]} {[%emt 00:00:42]} b4 {[%clk 01:06:25]}
{[%emt 00:09:38]} 15. Nd1 {[%clk 00:44:06]} {[%emt 00:00:56]} exf5 {[%clk
01:04:27]} {[%emt 00:02:28]} 16. g5 {[%clk 00:38:58]} {[%emt 00:05:38]} Nd7
{[%clk 01:02:43]} {[%emt 00:02:14]} 17. exf5 {[%clk 00:32:04]} {[%emt
00:07:24]} Re8 {[%clk 01:02:44]} {[%emt 00:00:29]} 18. Qh5 {[%clk 00:25:26]}
{[%emt 00:07:08]} g6 {[%clk 00:55:28]} {[%emt 00:07:46]} 19. fxg6 {[%clk
00:24:56]} {[%emt 00:01:01]} hxg6 {[%clk 00:55:36]} {[%emt 00:00:22]} 20. Qh4
{[%clk 00:24:23]} {[%emt 00:01:00]} Ne5 {[%clk 00:49:49]} {[%emt 00:06:19]} 21.
Bb2 {[%clk 00:22:39]} {[%emt 00:02:15]} Qd8 {[%clk 00:39:47]} {[%emt 00:10:32]}
22. Rxf7 {[%clk 00:18:35]} {[%emt 00:04:33]} Nxf7 {[%clk 00:35:23]} {[%emt
00:04:55]} 23. Bd5 {[%clk 00:18:39]} {[%emt 00:00:26]} Kf8 {[%clk 00:35:26]}
{[%emt 00:00:26]} 24. Qh7 {[%clk 00:18:55]} {[%emt 00:00:15]} 1-0

[Event "Masters Tournament (MTO)"]
[Site "Biel, Switzerland"]
[Date "2026.07.18"]
[Round "6.42"]
[White "Di Candia, Roberto"]
[Black "Alsaleh, Eissa"]
[Result "1-0"]
[TimeControl "100+30+30sec/move"]
[WhiteTitle "-"]
[BlackTitle "-"]
[WhiteFideId "856649"]
[BlackFideId "10312463"]
[WhiteElo "1988"]
[BlackElo "1908"]

1. c4 {[%clk 01:40:58]} {[%emt 04:46:19]} Nf6 {[%clk 01:40:26]} {[%emt
00:00:35]} 2. Nf3 {[%clk 01:41:20]} {[%emt 00:00:07]} c5 {[%clk 01:40:32]}
{[%emt 00:00:25]} 3. g3 {[%clk 01:41:39]} {[%emt 00:00:11]} g6 {[%clk
01:40:18]} {[%emt 00:00:43]} 4. Bg2 {[%clk 01:42:03]} {[%emt 00:00:07]} Bg7
{[%clk 01:40:39]} {[%emt 00:00:09]} 5. Nc3 {[%clk 01:42:24]} {[%emt 00:00:09]}
d6 {[%clk 01:39:51]} {[%emt 00:01:18]} 6. O-O {[%clk 01:42:38]} {[%emt
00:00:15]} O-O {[%clk 01:40:14]} {[%emt 00:00:08]} 7. d4 {[%clk 01:42:47]}
{[%emt 00:00:21]} Nc6 {[%clk 01:40:24]} {[%emt 00:00:20]} 8. dxc5 {[%clk
01:42:53]} {[%emt 00:00:24]} dxc5 {[%clk 01:40:04]} {[%emt 00:00:50]} 9. Be3
{[%clk 01:43:10]} {[%emt 00:00:13]} Qa5 {[%clk 01:30:58]} {[%emt 00:09:35]} 10.
Qb3 {[%clk 01:42:16]} {[%emt 00:01:24]} Nd7 {[%clk 01:26:43]} {[%emt 00:04:44]}
11. Qb5 {[%clk 01:39:37]} {[%emt 00:03:10]} a6 {[%clk 01:24:02]} {[%emt
00:03:11]} 12. Qxa5 {[%clk 01:38:23]} {[%emt 00:01:45]} Nxa5 {[%clk 01:24:18]}
{[%emt 00:00:14]} 13. Nd2 {[%clk 01:37:54]} {[%emt 00:00:59]} Bxc3 {[%clk
01:17:09]} {[%emt 00:07:39]} 14. bxc3 {[%clk 01:38:15]} {[%emt 00:00:09]} Rb8
{[%clk 01:16:41]} {[%emt 00:00:58]} 15. Bf4 {[%emt 00:10:00]} e5 {[%clk
01:14:51]} 16. Bh6 {[%clk 01:31:30]} {[%emt 00:00:05]} Rd8 {[%clk 01:13:21]}
{[%emt 00:01:59]} 17. Bd5 {[%clk 01:29:16]} {[%emt 00:02:44]} Nb6 {[%clk
01:09:39]} {[%emt 00:04:12]} 18. e4 {[%clk 01:21:57]} {[%emt 00:07:50]} Be6
{[%clk 01:04:32]} {[%emt 00:05:37]} 19. Nb3 {[%clk 01:18:00]} {[%emt 00:04:26]}
Naxc4 {[%clk 01:01:22]} {[%emt 00:03:40]} 20. Bxe6 {[%clk 01:18:18]} {[%emt
00:00:12]} fxe6 {[%clk 00:59:50]} {[%emt 00:02:03]} 21. Nxc5 {[%clk 01:18:40]}
{[%emt 00:00:07]} Rd6 {[%clk 00:50:11]} {[%emt 00:10:09]} 22. Rad1 {[%clk
01:18:30]} {[%emt 00:00:41]} Rbd8 {[%clk 00:42:48]} {[%emt 00:07:52]} 23. Rxd6
{[%clk 01:18:15]} {[%emt 00:00:46]} Rxd6 {[%clk 00:43:07]} {[%emt 00:00:11]} 24.
Nxb7 {[%clk 01:18:09]} {[%emt 00:00:36]} Rd3 {[%clk 00:41:11]} {[%emt
00:02:25]} 25. Nc5 {[%clk 01:10:05]} {[%emt 00:08:34]} Rxc3 {[%clk 00:38:00]}
{[%emt 00:03:41]} 26. Rd1 {[%clk 01:08:05]} {[%emt 00:02:30]} Nd2 {[%clk
00:29:49]} {[%emt 00:08:41]} 27. Rxd2 {[%clk 01:00:14]} {[%emt 00:08:21]} Rxc5
{[%clk 00:28:32]} {[%emt 00:01:48]} 28. Rd8+ {[%clk 00:58:55]} {[%emt
00:01:49]} Kf7 {[%clk 00:28:30]} {[%emt 00:00:31]} 29. Rf8+ {[%clk 00:58:44]}
{[%emt 00:00:42]} Ke7 {[%clk 00:28:08]} {[%emt 00:00:51]} 30. Rh8 {[%clk
00:59:09]} {[%emt 00:00:05]} Kf6 {[%clk 00:25:54]} {[%emt 00:02:44]} 31. Rxh7
{[%clk 00:58:47]} {[%emt 00:00:53]} Ra5 {[%clk 00:24:34]} {[%emt 00:01:50]} 32.
h4 {[%clk 00:52:01]} {[%emt 00:07:15]} g5 {[%clk 00:22:06]} {[%emt 00:02:58]}
33. h5 {[%clk 00:51:32]} {[%emt 00:00:59]} g4 {[%clk 00:20:13]} {[%emt
00:02:24]} 34. Bf8 {[%clk 00:51:06]} {[%emt 00:00:55]} Nd5 {[%clk 00:16:04]}
{[%emt 00:04:40]} 35. exd5 {[%clk 00:49:54]} {[%emt 00:01:42]} exd5 {[%clk
00:16:24]} {[%emt 00:00:09]} 36. Rd7 {[%clk 00:49:55]} {[%emt 00:02:59]} 1-0

[Event "Masters Tournament (MTO)"]
[Site "Biel, Switzerland"]
[Date "2026.07.18"]
[Round "6.43"]
[White "Malli, Shiivesh Sunil"]
[Black "Rosen, Noah"]
[Result "0-1"]
[TimeControl "100+30+30sec/move"]
[WhiteTitle "-"]
[BlackTitle "-"]
[WhiteFideId "1340409"]
[BlackFideId "1356267"]
[WhiteElo "1994"]
[BlackElo "1921"]

1. c4 {[%clk 01:40:43]} {[%emt 00:00:15]} Nf6 {[%clk 01:40:49]} {[%emt
00:00:11]} 2. Nc3 {[%clk 01:41:07]} {[%emt 00:00:06]} g6 {[%clk 01:41:13]}
{[%emt 00:00:06]} 3. g3 {[%clk 01:41:33]} {[%emt 00:00:05]} Bg7 {[%clk
01:41:36]} {[%emt 00:00:06]} 4. Bg2 {[%clk 01:41:59]} {[%emt 00:00:04]} O-O
{[%clk 01:41:57]} {[%emt 00:00:10]} 5. d3 {[%clk 01:42:24]} {[%emt 00:00:05]}
c5 {[%clk 01:41:50]} {[%emt 00:00:36]} 6. e4 {[%clk 01:42:39]} {[%emt
00:00:15]} d6 {[%clk 01:42:14]} {[%emt 00:00:06]} 7. Nge2 {[%clk 01:43:05]}
{[%emt 00:00:05]} Nc6 {[%clk 01:42:36]} {[%emt 00:00:07]} 8. O-O {[%clk
01:42:52]} {[%emt 00:00:43]} Rb8 {[%clk 01:42:30]} {[%emt 00:00:37]} 9. Rb1
{[%clk 01:42:41]} {[%emt 00:00:41]} Bg4 {[%clk 01:39:33]} {[%emt 00:03:26]} 10.
h3 {[%clk 01:42:24]} {[%emt 00:00:47]} Bxe2 {[%clk 01:39:56]} {[%emt 00:00:07]}
11. Nxe2 {[%clk 01:42:17]} {[%emt 00:00:38]} Nd7 {[%clk 01:38:54]} {[%emt
00:01:31]} 12. Be3 {[%clk 01:41:05]} {[%emt 00:01:42]} b5 {[%clk 01:36:36]}
{[%emt 00:02:48]} 13. Qd2 {[%clk 01:34:29]} {[%emt 00:07:06]} bxc4 {[%clk
01:35:15]} {[%emt 00:01:52]} 14. dxc4 {[%clk 01:34:43]} {[%emt 00:00:16]} Nde5
{[%clk 01:33:21]} {[%emt 00:02:24]} 15. b3 {[%clk 01:34:13]} {[%emt 00:01:00]}
Nb4 {[%clk 01:32:27]} {[%emt 00:01:24]} 16. a3 {[%clk 01:29:13]} {[%emt
00:05:30]} Nbc6 {[%clk 01:32:32]} {[%emt 00:00:24]} 17. f4 {[%clk 01:29:18]}
{[%emt 00:00:26]} Nd7 {[%clk 01:32:05]} {[%emt 00:00:56]} 18. e5 {[%clk
01:23:04]} {[%emt 00:06:45]} Qc7 {[%clk 01:25:40]} {[%emt 00:06:55]} 19. Rfd1
{[%clk 01:19:33]} {[%emt 00:04:00]} Na5 {[%clk 01:06:44]} {[%emt 00:19:27]} 20.
exd6 {[%clk 00:51:02]} {[%emt 00:29:01]} exd6 {[%clk 01:07:08]} {[%emt
00:00:06]} 21. Qc2 {[%clk 00:50:20]} {[%emt 00:01:11]} Rfe8 {[%clk 01:04:34]}
{[%emt 00:03:04]} 22. Bf2 {[%clk 00:50:03]} {[%emt 00:00:47]} Nxb3 {[%clk
01:04:37]} {[%emt 00:00:28]} 23. Rxb3 {[%clk 00:49:40]} {[%emt 00:00:53]} Rxb3
{[%clk 01:03:13]} {[%emt 00:01:53]} 24. Qxb3 {[%clk 00:50:04]} {[%emt
00:00:07]} Rxe2 {[%clk 01:03:37]} {[%emt 00:00:05]} 25. Qd3 {[%clk 00:50:19]}
{[%emt 00:00:15]} Re6 {[%clk 01:02:47]} {[%emt 00:01:19]} 26. a4 {[%clk
00:42:54]} {[%emt 00:07:57]} Nb8 {[%clk 00:51:41]} {[%emt 00:11:36]} 27. Bd5
{[%clk 00:40:24]} {[%emt 00:03:00]} Re8 {[%clk 00:51:41]} {[%emt 00:00:29]} 28.
Qf3 {[%clk 00:35:45]} {[%emt 00:05:09]} Na6 {[%clk 00:47:46]} {[%emt 00:04:25]}
29. f5 {[%clk 00:23:46]} {[%emt 00:12:28]} Nb4 {[%clk 00:46:48]} {[%emt
00:01:29]} 30. fxg6 {[%clk 00:23:02]} {[%emt 00:01:15]} hxg6 {[%clk 00:46:56]}
{[%emt 00:00:21]} 31. Be4 {[%clk 00:20:47]} {[%emt 00:02:44]} a5 {[%clk
00:46:11]} {[%emt 00:01:16]} 32. h4 {[%clk 00:19:28]} {[%emt 00:01:50]} Qe7
{[%clk 00:45:28]} {[%emt 00:01:13]} 33. Re1 {[%clk 00:18:59]} {[%emt 00:00:57]}
Qd7 {[%clk 00:44:28]} {[%emt 00:01:30]} 34. Rd1 {[%clk 00:18:56]} {[%emt
00:00:34]} Qe6 {[%clk 00:42:10]} {[%emt 00:02:48]} 35. Bc6 {[%clk 00:15:36]}
{[%emt 00:03:51]} Nxc6 {[%clk 00:42:01]} {[%emt 00:00:39]} 36. Qxc6 {[%clk
00:15:59]} {[%emt 00:00:07]} Bd4 {[%clk 00:36:02]} {[%emt 00:06:27]} 37. Rf1
{[%clk 00:03:09]} {[%emt 00:13:21]} Bxf2+ {[%clk 00:34:19]} {[%emt 00:02:13]}
38. Rxf2 {[%clk 00:03:36]} {[%emt 00:00:03]} Qe1+ {[%clk 00:34:40]} {[%emt
00:00:09]} 39. Kg2 {[%clk 00:03:12]} {[%emt 00:00:54]} Qe4+ {[%clk 00:34:48]}
{[%emt 00:00:22]} 40. Qxe4 {[%clk 00:03:20]} {[%emt 00:00:22]} Rxe4 {[%clk
00:35:13]} {[%emt 00:00:05]} 41. Rd2 {[%clk 00:03:22]} {[%emt 00:00:29]} Rxc4
{[%clk 00:35:07]} {[%emt 00:00:36]} 42. Rxd6 {[%clk 00:03:43]} {[%emt
00:00:09]} Rxa4 {[%clk 00:35:32]} {[%emt 00:00:05]} 43. Rc6 {[%clk 00:03:57]}
{[%emt 00:00:16]} c4 {[%clk 00:35:42]} {[%emt 00:00:20]} 44. Kf3 {[%clk
00:04:01]} {[%emt 00:00:25]} Ra3+ {[%clk 00:35:19]} {[%emt 00:00:53]} 45. Kf4
{[%clk 00:04:22]} {[%emt 00:00:09]} c3 {[%clk 00:35:38]} {[%emt 00:00:11]} 46.
g4 {[%clk 00:02:58]} {[%emt 00:01:54]} Kg7 {[%clk 00:35:30]} {[%emt 00:00:38]}
47. Kg5 {[%clk 00:03:01]} {[%emt 00:00:28]} Rb3 {[%clk 00:33:01]} {[%emt
00:02:59]} 48. h5 {[%clk 00:01:57]} {[%emt 00:01:34]} f6+ {[%clk 00:30:59]}
{[%emt 00:02:32]} 49. Kf4 {[%clk 00:01:48]} {[%emt 00:00:39]} a4 {[%clk
00:30:54]} {[%emt 00:00:35]} 50. hxg6 {[%clk 00:01:45]} {[%emt 00:00:33]} Kxg6
{[%clk 00:31:10]} {[%emt 00:00:14]} 51. g5 {[%clk 00:01:41]} {[%emt 00:00:34]}
Rb4+ {[%clk 00:31:09]} {[%emt 00:00:31]} 52. Ke3 {[%clk 00:01:36]} {[%emt
00:00:34]} Kxg5 {[%clk 00:31:25]} {[%emt 00:00:14]} 53. Rc5+ {[%clk 00:01:52]}
{[%emt 00:00:14]} f5 {[%clk 00:31:49]} {[%emt 00:00:07]} 0-1